[Event "FISCA IM Round Robin 2022"]
[Site "Cap Aurora"]
[Date "2022.06.29"]
[Round "9.3"]
[White "Dev, Shah"]
[Black "Voiteanu, Gabriel"]
[Result "1/2-1/2"]
[ECO "D78"]
[WhiteElo "2292"]
[BlackElo "2189"]
[Annotator "TA"]
[PlyCount "134"]
[EventDate "2022.06.22"]
[EventType "tourn"]
[EventCountry "ROU"]
[SourceTitle "playchess.com"]
[Source "ChessBase"]
[SourceQuality "1"]
[TimeControl "40/5400+30:900+30"]

{[%evp 16,134,0,0,35,-16,-1,-8,11,-10,5,-42,6,6,11,2,22,-10,0,5,62,62,62,62,62,62,62,62,62,41,47,45,47,40,75,75,75,75,75,75,75,75,80,83,82,29,63,24,24,0,0,0,0,0,0,0,0,0,0,0,0,0,0,0,0,0,0,0,0,0,0,-48,-48,-445,-445,-445,-445,-437,-430,-5057,-864,-5099,-5099,-5072,-5073,-5097,-4594,-4594,-445,-445,-408,-438,-431,-455,-432,-401,0,-317,0,0,0,0,0,0,0,0,0,0,0,0,0,0,0,0,0,0,0,0,0,0,0]} 1. Nf3 {[%emt 0:00:22]} Nf6 {[%emt 0:02:12]} 2. c4 {[%emt 0:00:07]} c6 {[%emt 0:00:24]} 3. d4 {[%emt 0:00:09]} d5 {[%emt 0:00:07]} 4. g3 {[%emt 0:00:05]} g6 {[%emt 0:03:08]} 5. Bg2 {[%emt 0:00:17]} Bg7 {[%emt 0:00:05]} 6. O-O {[%emt 0:00:13]} O-O {[%emt 0:00:54]} 7. Qb3 {[%emt 0:00:10]} Qb6 {[%emt 0:04:43]} 8. Nc3 {[%emt 0:00:55]} Bf5 {[%emt 0:02:53]} 9. Ne5 {[%emt 0:13:25][%cal Rc4d5]} Rd8 {[%emt 0:07:31] [#] D78: Fianchetto Grünfeld: 6 0-0 c6.} (9... Be6 $5 {[%cal Rd5c4]}) 10. e3 $146 {[%emt 0:07:05]} ({White should play} 10. cxd5 $14 Qxb3 11. axb3) ({Predecessor:} 10. cxd5 Qxb3 11. axb3 cxd5 12. Bg5 Nc6 13. Nxc6 bxc6 14. Ra6 Rdc8 15. Rfa1 Rab8 16. R1a3 Nd7 17. Bxe7 Bxd4 18. Bd6 Rb7 19. e3 Bc5 20. Bxc5 Nxc5 21. Rxa7 Rxa7 22. Rxa7 Nxb3 {½-½ (30) Yakubboev,N (2621)-Sarana,A (2649) Riga 2021}) 10... Qxb3 {[%emt 0:10:24]} 11. axb3 {[%emt 0:00:11]} Bc2 {[%emt 0:01:28]} 12. Ra3 {[%emt 0:02:59]} Ne4 {[%emt 0:15:13]} 13. b4 {[%emt 0:12:12]} (13. Na2 $11 {should be considered.}) 13... Nd7 {[%emt 0:15:28]} (13... Bxe5 $15 14. dxe5 Bd3) 14. Nxd7 {[%emt 0:09:25]} Rxd7 {[%emt 0:00:02]} 15. b5 {[%emt 0:05:56]} e5 {[%emt 0:17:41]} 16. Nxe4 {[%emt 0:04:40]} (16. Na2 $5 {[%cal Ra2b4]} exd4 17. exd4 $11 (17. Nb4 d3 $15)) 16... Bxe4 {[%emt 0:02:14]} 17. Bh3 {[%emt 0:01:10]} Bf5 {[%emt 0:02:02]} (17... Re7 $11) 18. Bxf5 {[%emt 0:00:18]} (18. bxc6 {keeps more tension.} bxc6 19. Bxf5 gxf5 20. dxe5 Bxe5 21. Rd1) 18... gxf5 {[%emt 0:00:01]} 19. bxc6 $1 {[%emt 0:04:31]} bxc6 {[%emt 0:00:07]} 20. dxe5 {[%emt 0:00:06]} Bxe5 {[%emt 0:00:43]} 21. Ra5 {[%emt 0:14:43]} Rb8 {[%emt 0:07:25]} 22. cxd5 {[%emt 0:01:30]} Rxd5 {[%emt 0:02:32]} 23. Rxa7 {[%emt 0:00:09]} Bxb2 {[%emt 0:00:22]} 24. Ra2 {[%emt 0:00:05]} Bxc1 {[%emt 0:03:25]} 25. Rxc1 $14 {[%emt 0:00:02][%mdl 4096] Endgame KRR-KRR} c5 {[%emt 0:00:09]} 26. Ra5 {[%emt 0:01:12]} Rc8 {[%emt 0:00:17]} 27. Kg2 {[%emt 0:01:15]} Kf8 {[%emt 0:01:13]} 28. Rc4 {[%emt 0:00:58]} Ke7 {[%emt 0:00:40]} 29. Rh4 {[%emt 0:02:32]} Ke6 {[%emt 0:00:25]} 30. Rh6+ {[%emt 0:04:55]} ({White should try} 30. Ra3 $16) 30... f6 {[%emt 0:00:42]} 31. Ra6+ {[%emt 0:00:00]} Rd6 {[%emt 0:00:29]} 32. Rxf6+ {[%emt 0:00:16]} Kxf6 {[%emt 0:00:01]} 33. Rxd6+ $11 {[%emt 0:00:07] KR-KR} Ke5 {[%emt 0:00:01]} 34. Rd3 {[%emt 0:00:38]} c4 {[%emt 0:00:35]} 35. Rc3 {[%emt 0:00:02]} Kd5 {[%emt 0:00:14]} 36. Kf3 {[%emt 0:01:04]} Kc5 {[%emt 0:01:26]} 37. Kf4 {[%emt 0:00:05]} Kb4 {[%emt 0:00:11]} 38. Rc1 {[%emt 0:00:04]} c3 {[%emt 0:00:51]} 39. f3 {[%emt 0:00:38]} ({Much worse is} 39. Kxf5 Rf8+ 40. Kg5 Rxf2 $15) 39... Kb3 {[%emt 0:00:49]} 40. Kxf5 {[%emt 0:00:18]} Kb2 {[%emt 0:00:04]} 41. Re1 {[%emt 0:15:52]} c2 {[%emt 0:15:28] [#] White must now prevent ...Rc3.} 42. e4 {[%emt 0:01:55] aiming for e5.} Rf8+ {[%emt 0:00:26][%mdl 64] Skewer} 43. Kg5 {[%emt 0:00:50]} (43. Kg4 $11) 43... Rxf3 $15 {[%emt 0:00:48]} 44. e5 $2 {[%emt 0:00:01][%mdl 8192] [#]} (44. Kh6 $1 $15) 44... Re3 $3 $19 {[%emt 0:00:48][%mdl 576] Promotion} 45. Rxe3 {[%emt 0:00:09] Intending Re2 and mate.} c1=Q {[%emt 0:00:03] KQ-KR} 46. Kf4 {[%emt 0:00:04]} Qf1+ {[%emt 0:00:52]} 47. Kg4 {[%emt 0:00:48]} (47. Rf3 $142 Qc4+ 48. Kg5) 47... Qf2 {[%emt 0:00:29]} (47... h5+ $142 48. Kg5 Qf2) 48. Re4 {[%emt 0:01:20]} h5+ {[%emt 0:00:38]} 49. Kg5 {[%emt 0:00:00]} Qxh2 {[%emt 0:00:20]} 50. g4 {[%emt 0:02:03]} Qg2 {[%emt 0:00:39]} 51. Rf4 {[%emt 0:00:44]} Qg3 {[%emt 0:00:31]} (51... hxg4 $142 {( -> ...g3)} 52. Rxg4 Qd5) 52. e6 {[%emt 0:00:51]} hxg4 {[%emt 0:00:36]} 53. Re4 {[%emt 0:00:00] Inhibits Qe3+.} Qf3 {[%emt 0:00:33] Prevents Re2+.} 54. Rxg4 {[%emt 0:00:02]} Qe3+ {[%emt 0:00:15]} 55. Kf5 {[%emt 0:00:01]} Qf3+ {[%emt 0:00:20]} 56. Kg5 $1 {[%emt 0:00:01]} Kc3 $2 {[%emt 0:00:18]} (56... Qf8 $19 {Threatens to win with ...Kc2.} 57. Re4 Qe7+ 58. Kf5 Kc3) 57. e7 $11 {[%emt 0:00:49] The position is equal.} Qf7 {[%emt 0:00:07]} (57... Qc6 $5 58. Kf5 Qf3+ 59. Kg5 Qf7 $11) 58. Re4 {[%emt 0:00:01]} Qg7+ {[%emt 0:00:09]} 59. Kf5 {[%emt 0:00:12]} Qh7+ {[%emt 0:01:03]} 60. Kf4 {[%emt 0:00:14]} Qh4+ {[%emt 0:00:55]} 61. Kf5 {[%emt 0:00:24]} Qh5+ {[%emt 0:00:30]} 62. Kf6 {[%emt 0:00:32]} Qe8 {[%emt 0:00:49]} 63. Re6 {[%emt 0:00:27]} Qh8+ {[%emt 0:00:27]} 64. Kf7 {[%emt 0:01:19]} Qh7+ {[%emt 0:00:09]} 65. Kf6 {[%emt 0:01:27]} Qh8+ {[%emt 0:00:30]} 66. Kf7 {[%emt 0:00:05]} Qh7+ {[%emt 0:00:04]} 67. Kf6 {[%emt 0:00:02]} Qh8+ {[%emt 0:02:02] Black had all chances to win.  Weighted Error Value: White=0.41/Black=0.54} 1/2-1/2

[Event "FISCA IM Round Robin 2022"]
[Site "Cap Aurora"]
[Date "2022.06.29"]
[Round "9.4"]
[White "Srinath, Rao S.V."]
[Black "Ciolacu, Alessia-Mihaela"]
[Result "1-0"]
[ECO "A45"]
[WhiteElo "2316"]
[BlackElo "2198"]
[Annotator "TA"]
[PlyCount "59"]
[EventDate "2022.06.22"]
[EventType "tourn"]
[EventCountry "ROU"]
[SourceTitle "playchess.com"]
[Source "ChessBase"]
[SourceQuality "1"]
[TimeControl "40/5400+30:900+30"]

{[%evp 9,59,12,12,12,7,0,3,0,0,-2,11,18,0,13,0,0,45,51,46,52,171,123,129,122,127,131,125,126,126,119,173,162,148,131,150,150,202,139,184,183,289,267,2270,168,2287,2222,29988,29989,29989,29990,29986,1457]} 1. d4 {[%emt 0:00:12]} Nf6 {[%emt 0:00:08]} 2. Bf4 {[%emt 0:00:07]} c5 {[%emt 0:00:23]} 3. e3 {[%emt 0:00:05]} Qb6 {[%emt 0:00:52]} 4. Nc3 {[%emt 0:00:18]} cxd4 {[%emt 0:00:53]} 5. exd4 {[%emt 0:00:51]} a6 {[%emt 0:00:14]} 6. a3 {[%emt 0:02:02] A45: Trompowsky Attack.} d5 {[%emt 0:01:37]} 7. Bd3 {[%emt 0:09:52]} Nc6 {[%emt 0:02:10]} 8. Nge2 {[%emt 0:04:00] The position is equal.} Bg4 {[%emt 0:01:57]} (8... Qxb2 $2 9. Na4 Qxa1 10. Qxa1 $18) (8... Nxd4 $2 9. Nxd4 e6 {[#]} 10. O-O $1 $18) 9. f3 {[%emt 0:11:03]} Bd7 {[%emt 0:00:20]} 10. Na4 {[%emt 0:00:27]} Qa7 {[%emt 0:08:34] [#]} 11. c3 $146 {[%emt 0:04:00]} ({Predecessor:} 11. Nc5 e6 12. Nxd7 Nxd7 13. c3 Be7 14. O-O Nce5 15. Bxe5 Nxe5 16. Kh1 Nxd3 17. Qxd3 {1-0 (45) Bosque Ortega,X (2229)-Garcia Trobat,F (2291) Benidorm 2011}) 11... e6 {[%emt 0:13:10]} 12. b4 {[%emt 0:02:02][%cal Bb2b4,Bb4c5][%mdl 32]} Be7 {[%emt 0:04:56]} 13. Nc5 {[%emt 0:03:00]} O-O {[%emt 0:00:43]} 14. Qc2 $36 {[%emt 0:06:45][%mdl 2048] White is more active.} e5 {[%emt 0:13:17]} ({Black should play} 14... Bc8 $14) 15. dxe5 {[%emt 0:02:07]} ({White should try} 15. Bxe5 $18 Bc8 16. Bf4) 15... Bxc5 $16 {[%emt 0:00:11]} 16. bxc5 {[%emt 0:00:06]} Nh5 {[%emt 0:00:29]} 17. Be3 {[%emt 0:04:03]} Nxe5 {[%emt 0:03:25]} 18. Bxh7+ {[%emt 0:00:44]} Kh8 {[%emt 0:00:00]} 19. Bd4 {[%emt 0:00:23] Threatens to win with c6.} Qb8 {[%emt 0:01:42]} (19... Bb5 $16) 20. Bf5 {[%emt 0:01:45]} Bb5 {[%emt 0:04:32][%cal Oe5f3]} 21. O-O {[%emt 0:02:57] Qd2 is the strong threat.} Re8 {[%emt 0:00:46]} 22. Rfe1 {[%emt 0:06:09] Black must now prevent Qd2.} Kg8 {[%emt 0:01:38]} (22... Nc6 $16 23. Qd2 Kg8) 23. Qd2 {[%emt 0:03:20] aiming for Qg5.} Qd8 {[%emt 0:03:18] Against Qg5} 24. Ng3 {[%emt 0:04:03]} Nxg3 {[%emt 0:04:17]} (24... Nc4 {was called for.} 25. Rxe8+ Bxe8) 25. hxg3 $18 {[%emt 0:00:38] Really sharp!} Nc6 {[%emt 0:00:49]} (25... Qc7 26. Qg5 Ng6 27. Bxg6 fxg6 28. Qxg6 Qf7) 26. Rxe8+ {[%emt 0:02:34]} Qxe8 {[%emt 0:00:02] [#]} 27. Bxg7 $1 {[%emt 0:00:40][%mdl 512] White threatens Qh6 and mate. A strong pair of Bishops.} Ne7 {[%emt 0:08:54] [#]} (27... f6 28. Bxf6) 28. Qh6 $1 {[%emt 0:06:16][%csl Gg7][%cal Rh6h8] White mates.} Ng6 {[%emt 0:00:46]} 29. Bxg6 {[%emt 0:00:23]} fxg6 {[%emt 0:00:08]} 30. Bd4 {[%emt 0:00:04] Weighted Error Value: White=0.08 (flawless) /Black=0.46} (30. Bf6 $142 Qe3+ 31. Qxe3 Re8 32. Qh6 Kf7 33. Qg7+ Ke6 34. Re1+ Kf5 35. g4+ Kf4 36. Qh6+ Kg3 37. Bh4#) 1-0

[Event "FISCA IM Round Robin 2022"]
[Site "Cap Aurora"]
[Date "2022.06.29"]
[Round "9.5"]
[White "Buzbuchi, Ionut"]
[Black "Manolache, Marius"]
[Result "0-1"]
[ECO "B09"]
[WhiteElo "2301"]
[BlackElo "2481"]
[Annotator "TA"]
[PlyCount "64"]
[EventDate "2022.06.22"]
[EventType "tourn"]
[EventCountry "ROU"]
[SourceTitle "playchess.com"]
[Source "ChessBase"]
[SourceQuality "1"]
[TimeControl "40/5400+30:900+30"]

{[%evp 18,64,57,58,82,60,52,33,32,31,39,37,33,29,47,16,52,45,72,67,62,48,102,6,80,76,86,41,39,0,0,-8,-6,-4,-7,-8,-4,-51,-49,-53,-58,-53,-54,-63,-45,-407,-399,-398,-300]} 1. e4 {[%emt 0:00:04]} d6 {[%emt 0:00:21]} 2. d4 {[%emt 0:00:06]} Nf6 {[%emt 0:00:06]} 3. Nc3 {[%emt 0:00:06]} g6 {[%emt 0:00:06]} 4. f4 {[%emt 0:00:21]} Bg7 {[%emt 0:00:13]} 5. Nf3 {[%emt 0:00:05]} O-O {[%emt 0:00:13]} 6. Bd3 {[%emt 0:00:06]} c5 {[%emt 0:00:37]} 7. dxc5 {[%emt 0:01:33]} dxc5 {[%emt 0:00:19]} 8. e5 {[%emt 0:00:24]} Nd5 {[%emt 0:00:14]} 9. Nxd5 {[%emt 0:01:23]} Qxd5 {[%emt 0:01:20]} 10. Qe2 {[%emt 0:00:11]} Qc6 {[%emt 0:10:52] B09: Pirc Defence: Austrian Attack.} 11. O-O {[%emt 0:05:46]} Be6 {[%emt 0:08:53] [#]} 12. Be4 $146 {[%emt 0:20:00]} (12. Ng5 {seems wilder.} c4 13. Be4 Bd5 14. Bxd5 Qxd5 15. Rd1) ({Predecessor:} 12. Ng5 c4 13. Be4 Bd5 14. Bxd5 Qxd5 15. Be3 Na6 16. Rfd1 Qc6 17. Rd4 Rac8 18. Rad1 {0-1 (61) Heinrich,A (2070)-Beerbaum,D (2148) Mecklenburg VP 2003}) 12... Bd5 {[%emt 0:04:18] White is slightly better.} 13. Bxd5 {[%emt 0:00:07]} (13. Ng5 {with more complications.} Na6 14. Bxd5 Qxd5 15. Rd1) 13... Qxd5 {[%emt 0:00:04]} 14. Rd1 {[%emt 0:00:06]} Qc6 {[%emt 0:00:08]} 15. Be3 {[%emt 0:04:02]} Na6 {[%emt 0:00:20]} 16. Qc4 {[%emt 0:06:42]} Rac8 {[%emt 0:07:25]} (16... Rfd8 {keeps more tension.} 17. Ng5 e6 18. Bf2 Nb4) 17. c3 {[%emt 0:01:59]} Bh6 {[%emt 0:00:31]} 18. a4 {[%emt 0:01:37]} Rfd8 {[%emt 0:03:00]} 19. Kf2 {[%emt 0:07:30]} Kf8 {[%emt 0:05:28]} (19... Nc7 $14) 20. Ke2 {[%emt 0:12:01]} (20. g4 $16) 20... Rxd1 {[%emt 0:13:06]} (20... Nc7 $11) 21. Rxd1 $16 {[%emt 0:00:07]} Nc7 {[%emt 0:00:10]} 22. Qxc5 {[%emt 0:02:11]} ({Don't go for} 22. Bxc5 $2 Ne6 23. Bxe7+ Kxe7 24. Qb4+ Qc5 25. Qxc5+ Nxc5 $19) 22... Qxa4 {[%emt 0:00:30]} 23. Qxa7 {[%emt 0:04:18]} Qb5+ {[%emt 0:12:32]} 24. c4 {[%emt 0:01:23]} Qxc4+ {[%emt 0:00:17]} 25. Kf2 {[%emt 0:00:09] [#] Rc1 is the strong threat.} Qb3 {[%emt 0:02:53]} (25... Bxf4 $2 26. Bxf4 Qxf4 27. Qxb7 $18) 26. Rd2 {[%emt 0:09:28]} Nd5 $36 {[%emt 0:00:31][%mdl 2048] Black is more active.} 27. Qd4 {[%emt 0:00:31]} (27. Qa3 $11 Qxa3 28. bxa3 Nxf4 29. Rd4) 27... e6 $15 {[%emt 0:01:33]} 28. g3 {[%emt 0:02:08]} Kg8 {[%emt 0:03:00]} 29. Qd3 {[%emt 0:01:38]} Qa4 {[%emt 0:00:15]} 30. b3 {[%emt 0:02:22]} Qa1 {[%emt 0:00:12]} 31. Rc2 $2 {[%emt 0:00:58][%mdl 8192]} (31. Bd4 $15 Qc1 32. Rd1) 31... Rxc2+ $19 {[%emt 0:00:11]} 32. Qxc2 {[%emt 0:00:07] [#]} Qf1+ $3 {[%emt 0:00:07][%mdl 512] Weighted Error Value: White=0.50/Black=0.14 (very precise)} 0-1